[Event "Norm Congress-IM 2019"]
[Site "Saint Louis"]
[Date "2019.05.17"]
[Round "2.1"]
[White "Kiewra, Keaton"]
[Black "Jacobson, Aaron"]
[Result "0-1"]
[ECO "D02"]
[WhiteElo "2375"]
[BlackElo "2311"]
[Annotator "NA RC"]
[PlyCount "98"]
[EventDate "2019.05.16"]
[EventType "tourn"]
[EventCountry "USA"]
[SourceTitle "playchess.com"]
[Source "ChessBase"]
[SourceQuality "1"]
[TimeControl "5400+30"]

1. Nf3 {[%emt 0:00:00]} d5 {[%emt 0:00:04]} 2. d4 {[%emt 0:00:00]} Nf6 {[%emt 0:00:05]} 3. c4 {[%emt 0:00:00]} e6 {[%emt 0:00:05]} 4. g3 {[%emt 0:00:45]} Bb4+ {[%emt 0:01:06]} 5. Nc3 {[%emt 0:00:56]} O-O {[%emt 0:01:32]} 6. Bg2 {[%emt 0:01:06]} dxc4 {[%emt 0:00:18]} 7. O-O {[%emt 0:03:25]} Nc6 {[%emt 0:02:46]} 8. a3 {[%emt 0:04:15]} Bxc3 {[%emt 0:03:14]} 9. bxc3 {[%emt 0:00:23]} a6 {[%emt 0:00:37] E20: Nimzo-Indian: 4 g3 and 4 f3} (9... Rb8 10. Bg5 h6 11. Bh4 g5 12. Nxg5 hxg5 13. Bxg5 Kg7 14. e4 Ne7 15. f4 Nh7 16. Qh5 f6 17. Bh6+ Kh8 18. Bxf8 Qxf8 {1-0 (55) Salem,A (2638)-Inarkiev,E (2689) Riadh 2017}) 10. Qc2 $146 {[%emt 0:10:09]} ({Predecessor:} 10. Bf4 b5 11. Ne5 Bb7 12. Nxc6 Bxc6 13. Bxc6 Ra7 14. Qc2 g6 15. Bg5 Qe7 16. Qd2 Kg7 17. Qf4 a5 18. e4 Ra6 19. e5 Nd5 20. Bxd5 Qe8 21. Qf6+ Kg8 22. Bh6 {1-0 (22) Plotkin,D-Muniz,A ICC INT 2009}) 10... Na5 {[%emt 0:10:38]} 11. Nd2 {[%emt 0:02:02]} c5 {[%emt 0:09:00]} 12. dxc5 {[%emt 0:03:26]} Qc7 {[%emt 0:00:21]} 13. a4 {[%emt 0:06:55]} Rd8 {[%emt 0:02:38]} 14. Ba3 {[%emt 0:03:32]} Nd7 {[%emt 0:00:19]} (14... Rb8 $11) 15. Bb4 {[%emt 0:05:57]} ({White should try} 15. Rfd1 $16) 15... Nxc5 {[%emt 0:01:41]} 16. Bxa5 {[%emt 0:00:11]} Qxa5 {[%emt 0:00:04]} 17. Nxc4 {[%emt 0:00:08]} Qc7 {[%emt 0:00:07]} 18. a5 {[%emt 0:01:00]} Bd7 {[%emt 0:03:51]} 19. Rfb1 {[%emt 0:06:09]} Bb5 {[%emt 0:04:48]} 20. Nb6 {[%emt 0:03:01]} Rab8 {[%emt 0:00:15]} 21. c4 {[%emt 0:02:23]} Bc6 {[%emt 0:00:24]} 22. Bxc6 {[%emt 0:01:33]} Qxc6 {[%emt 0:00:08]} 23. Rd1 {[%emt 0:00:29]} g6 {[%emt 0:07:41]} 24. Rxd8+ {[%emt 0:05:27]} Rxd8 {[%emt 0:00:09]} 25. Rd1 {[%emt 0:00:10]} Qc7 {[%emt 0:02:25]} 26. Rd2 {[%emt 0:00:57]} Rd6 {[%emt 0:02:17]} 27. Qd1 {[%emt 0:06:35]} Rxd2 {[%emt 0:04:03]} 28. Qxd2 {[%emt 0:00:03]} Qe5 {[%emt 0:01:12]} 29. Qd8+ {[%emt 0:01:21]} (29. Kg2 $11 {remains equal.}) 29... Kg7 {[%emt 0:00:06]} 30. Nc8 {[%emt 0:00:43] [#]} (30. Kg2 $11) 30... Ne4 $1 {[%emt 0:07:40]} 31. Kg2 {[%emt 0:04:06] [#]} (31. e3 $142) 31... Qc5 $1 {[%emt 0:03:03] Double Attack} 32. e3 {[%emt 0:01:10]} Qxc4 {[%emt 0:03:36]} 33. Qd4+ Qxd4 {[%emt 0:00:06]} 34. exd4 {[%emt 0:09:24]} Kf8 {[%emt 0:06:51]} 35. f3 {[%emt 0:00:09]} Nd2 {[%emt 0:00:11]} 36. Nd6 {[%emt 0:00:04]} Nb3 {[%emt 0:00:07]} 37. Nxb7 {[%emt 0:00:03]} Ke7 {[%emt 0:02:10]} 38. Kf2 {[%emt 0:00:49]} Kd7 {[%emt 0:07:27]} ({Not} 38... Nxd4 39. Ke3 $17) 39. Ke3 {[%emt 0:00:40] [#]} Kc7 $15 {[%emt 0:00:07]} ({Black should play} 39... f6 $1 $19 40. Kd3 Kc6) 40. Nc5 {[%emt 0:00:10]} Nxc5 {[%emt 0:00:32]} 41. dxc5 {[%emt 0:00:03]} Kc6 {[%emt 0:00:11]} 42. Kd4 {[%emt 0:00:14]} f6 {[%emt 0:00:25]} 43. h4 {[%emt 0:11:33]} e5+ {[%emt 0:00:19]} 44. Kc4 {[%emt 0:00:13]} f5 {[%emt 0:00:13]} 45. f4 {[%emt 0:01:12]} e4 {[%emt 0:01:01]} 46. Kd4 {[%emt 0:00:04]} e3 {[%emt 0:03:14]} 47. Kxe3 {[%emt 0:00:05]} Kxc5 {[%emt 0:00:03]} 48. h5 {[%emt 0:00:10]} gxh5 {[%emt 0:00:48]} 49. Kd3 {[%emt 0:00:05]} Kd5 {[%emt 0:00:07]} 0-1

[Event "Norm Congress-IM 2019"]
[Site "Saint Louis"]
[Date "2019.05.17"]
[Round "2.2"]
[White "Wu, Rochelle"]
[Black "Rosen, Eric"]
[Result "1/2-1/2"]
[ECO "A50"]
[WhiteElo "2174"]
[BlackElo "2338"]
[Annotator "RC"]
[PlyCount "170"]
[EventDate "2019.05.16"]
[EventType "tourn"]
[EventCountry "USA"]
[SourceTitle "playchess.com"]
[Source "ChessBase"]
[SourceQuality "1"]
[TimeControl "5400+30"]

1. d4 {[%emt 0:00:00]} Nf6 {[%emt 0:00:00]} 2. c4 {[%emt 0:00:00]} Nc6 {[%emt 0:00:01]} 3. Nc3 {[%emt 0:04:32]} e5 {[%emt 0:00:35]} 4. d5 {[%emt 0:04:10]} Ne7 {[%emt 0:00:06]} 5. g3 {[%emt 0:01:12]} Ng6 {[%emt 0:01:02]} 6. Bg2 {[%emt 0:01:52]} Bb4 {[%emt 0:00:15]} 7. Bd2 {[%emt 0:03:07]} a5 {[%emt 0:01:30]} 8. e4 {[%emt 0:04:24]} d6 {[%emt 0:00:59]} 9. Nge2 {[%emt 0:01:18]} Bg4 {[%emt 0:10:41]} 10. h3 {[%emt 0:03:19]} Bd7 {[%emt 0:00:35]} 11. Qc2 {[%emt 0:00:43]} Qc8 {[%emt 0:01:31]} 12. O-O-O {[%emt 0:02:45]} c6 {[%emt 0:03:21]} 13. Bg5 {[%emt 0:21:10]} Qc7 {[%emt 0:02:47]} 14. Kb1 {[%emt 0:07:02]} Ne7 {[%emt 0:07:08]} 15. Bxf6 {[%emt 0:03:47]} gxf6 {[%emt 0:00:22]} 16. a3 {[%emt 0:00:31]} Bc5 {[%emt 0:01:12]} 17. f4 {[%emt 0:02:54]} cxd5 {[%emt 0:06:13]} 18. exd5 {[%emt 0:00:06]} Nf5 {[%emt 0:01:18]} 19. Qd3 {[%emt 0:06:05]} Ne3 {[%emt 0:01:52]} 20. Rdg1 {[%emt 0:00:54]} f5 {[%emt 0:03:20]} 21. fxe5 {[%emt 0:03:44]} dxe5 {[%emt 0:00:38]} 22. Nd1 {[%emt 0:02:13]} Nxg2 {[%emt 0:08:45]} 23. Rxg2 {[%emt 0:01:56]} Rc8 {[%emt 0:00:14]} 24. Re1 {[%emt 0:01:04]} O-O {[%emt 0:02:53]} 25. g4 {[%emt 0:04:11]} f4 {[%emt 0:01:02]} 26. Ndc3 {[%emt 0:00:51]} Kh8 {[%emt 0:02:13]} 27. Ne4 {[%emt 0:01:47]} f6 {[%emt 0:10:00]} 28. d6 {[%emt 0:04:40]} Qc6 {[%emt 0:01:22]} 29. Nxf4 {[%emt 0:01:53]} exf4 {[%emt 0:02:05]} 30. Nxc5 {[%emt 0:00:51]} Be8 {[%emt 0:04:01]} 31. Ne4 {[%emt 0:09:07]} Bg6 {[%emt 0:00:38]} 32. b3 {[%emt 0:02:55]} Rcd8 {[%emt 0:09:41]} 33. Kb2 {[%emt 0:00:39]} f3 {[%emt 0:03:23]} 34. Qxf3 {[%emt 0:00:37]} Rxd6 {[%emt 0:00:02]} 35. Rge2 {[%emt 0:00:18]} Re6 {[%emt 0:01:43]} 36. Nd2 {[%emt 0:00:14]} Rxe2 {[%emt 0:00:33]} 37. Rxe2 {[%emt 0:00:05]} Qb6 {[%emt 0:01:20]} 38. Qc3 {[%emt 0:00:11]} Qg1 {[%emt 0:02:41]} 39. Re6 {[%emt 0:01:32]} Kg8 {[%emt 0:01:37]} 40. Rd6 {[%emt 0:00:46]} Qd1 {[%emt 0:04:22]} 41. Qc1 {[%emt 0:00:29]} Qe2 {[%emt 0:00:12]} 42. Qc3 {[%emt 0:00:14]} a4 {[%emt 0:01:24]} 43. bxa4 {[%emt 0:00:15]} Qd1 {[%emt 0:00:22]} 44. c5 {[%emt 0:00:19]} Qh1 {[%emt 0:02:41]} 45. a5 {[%emt 0:00:27]} Re8 {[%emt 0:01:10]} 46. g5 {[%emt 0:00:31]} fxg5 {[%emt 0:02:00]} 47. Rd7 {[%emt 0:00:05]} Bf7 {[%emt 0:00:05]} 48. Qf6 {[%emt 0:00:16]} Rf8 {[%emt 0:00:16]} 49. Qxg5+ {[%emt 0:00:05]} Kh8 {[%emt 0:00:49]} 50. Qe5+ {[%emt 0:00:59]} Kg8 {[%emt 0:00:03]} 51. Ne4 {[%emt 0:00:24]} Qg2+ {[%emt 0:01:28]} 52. Rd2 {[%emt 0:00:06]} Qg7 {[%emt 0:00:08]} 53. Qxg7+ {[%emt 0:01:44]} Kxg7 {[%emt 0:00:01]} 54. Rf2 {[%emt 0:00:28]} Ra8 {[%emt 0:00:33]} 55. Nd6 {[%emt 0:00:07]} Bd5 {[%emt 0:00:16]} 56. Rd2 {[%emt 0:00:25]} Bc6 {[%emt 0:00:22]} 57. Nxb7 {[%emt 0:00:43]} Ra7 {[%emt 0:02:04]} 58. Nd8 {[%emt 0:00:31]} Be4 {[%emt 0:00:03]} 59. c6 {[%emt 0:00:32]} Kf6 {[%emt 0:00:23]} 60. Nb7 {[%emt 0:01:04]} Bxc6 {[%emt 0:00:56]} 61. Rd6+ {[%emt 0:00:04]} Ke5 {[%emt 0:00:03]} 62. Rxc6 {[%emt 0:00:07]} Rxb7+ {[%emt 0:00:07]} 63. Rb6 {[%emt 0:00:04]} Ra7 {[%emt 0:01:23]} 64. a6 {[%emt 0:00:13]} Kd4 {[%emt 0:00:37]} 65. Kb3 {[%emt 0:00:24]} Kc5 {[%emt 0:00:27]} 66. Rb7 {[%emt 0:00:14]} Rxa6 {[%emt 0:00:17]} 67. Rxh7 {[%emt 0:00:04]} Rf6 {[%emt 0:00:25]} 68. Rh5+ {[%emt 0:00:16]} Kc6 {[%emt 0:00:13]} 69. Kb4 {[%emt 0:00:30]} Rf1 {[%emt 0:00:49]} 70. Rh6+ {[%emt 0:01:07]} Kc7 {[%emt 0:00:14]} 71. a4 {[%emt 0:00:22]} Rf4+ {[%emt 0:00:27]} 72. Kb5 {[%emt 0:00:06]} Kb7 {[%emt 0:01:01]} 73. Rh5 {[%emt 0:00:20]} Rf1 {[%emt 0:00:13]} 74. a5 {[%emt 0:00:40]} Rc1 {[%emt 0:00:23]} 75. Rh7+ {[%emt 0:00:32]} Kb8 {[%emt 0:00:22]} 76. a6 {[%emt 0:00:35]} Rb1+ {[%emt 0:01:06]} 77. Kc6 {[%emt 0:00:05]} Ra1 {[%emt 0:00:19]} 78. a7+ {[%emt 0:01:04]} Ka8 {[%emt 0:00:03]} 79. h4 {[%emt 0:00:21]} Ra6+ {[%emt 0:00:34]} 80. Kd5 {[%emt 0:00:36]} Rd6+ {[%emt 0:00:10]} 81. Ke5 {[%emt 0:00:09]} Re6+ {[%emt 0:00:13]} 82. Kf5 {[%emt 0:00:18]} Rf6+ {[%emt 0:00:02]} 83. Kg5 {[%emt 0:00:11]} Rg6+ {[%emt 0:00:03]} 84. Kh5 {[%emt 0:00:18]} Rg5+ {[%emt 0:00:05]} 85. Kh6 {[%emt 0:00:05]} Rg6+ {[%emt 0:00:09]} 1/2-1/2

[Event "Norm Congress-IM 2019"]
[Site "Saint Louis"]
[Date "2019.05.18"]
[Round "4.2"]
[White "Gauri, Shankar"]
[Black "Jacobson, Aaron"]
[Result "1/2-1/2"]
[ECO "D02"]
[WhiteElo "2375"]
[BlackElo "2311"]
[Annotator "ChessBase"]
[PlyCount "226"]
[EventDate "2019.05.16"]
[EventType "tourn"]
[EventCountry "USA"]
[SourceTitle "playchess.com"]
[Source "ChessBase"]
[SourceQuality "1"]
[TimeControl "5400+30"]

1. d4 {[%emt 0:03:34]} d5 {[%emt 0:00:00]} 2. Nf3 {[%emt 0:03:27]} Nf6 {[%emt 0:00:11]} 3. c4 {[%emt 0:00:07]} e6 {[%emt 0:00:05]} 4. g3 {[%emt 0:00:03]} Bb4+ {[%emt 0:02:00]} 5. Nbd2 {[%emt 0:01:05]} dxc4 {[%emt 0:00:39]} 6. Bg2 {[%emt 0:00:25]} b5 {[%emt 0:08:16]} 7. Ne5 {[%emt 0:01:49]} Nd5 {[%emt 0:01:46]} 8. O-O {[%emt 0:08:15]} Bb7 {[%emt 0:01:28]} 9. Qc2 {[%emt 0:12:32]} Be7 {[%emt 0:21:47]} 10. a3 {[%emt 0:04:48]} a5 {[%emt 0:00:37]} 11. b3 {[%emt 0:15:03]} c3 {[%emt 0:03:49]} 12. Ne4 {[%emt 0:00:06]} b4 {[%emt 0:05:13]} 13. Nc5 {[%emt 0:00:07]} Bxc5 {[%emt 0:01:09]} 14. dxc5 {[%emt 0:00:02]} Nc6 {[%emt 0:09:20]} 15. Nxc6 {[%emt 0:07:05]} Bxc6 {[%emt 0:00:10]} 16. e4 {[%emt 0:09:21]} Nf6 {[%emt 0:01:19]} 17. Bg5 {[%emt 0:04:30]} O-O {[%emt 0:03:39]} 18. Rfd1 {[%emt 0:03:29]} Qe7 {[%emt 0:15:25]} 19. e5 {[%emt 0:06:25]} Bxg2 {[%emt 0:00:08]} 20. Kxg2 {[%emt 0:02:20]} Qxc5 {[%emt 0:00:19]} 21. exf6 {[%emt 0:02:09]} Qxg5 {[%emt 0:01:12]} 22. axb4 {[%emt 0:00:14]} axb4 {[%emt 0:01:20]} 23. Rxa8 {[%emt 0:00:49]} Rxa8 {[%emt 0:00:06]} 24. Qe4 {[%emt 0:00:22]} Rf8 {[%emt 0:02:25]} 25. Qxb4 {[%emt 0:00:46]} Qxf6 {[%emt 0:01:56]} 26. Rc1 {[%emt 0:00:44]} Qf5 {[%emt 0:05:06]} 27. Qxc3 {[%emt 0:00:49]} Rc8 {[%emt 0:01:57]} 28. h4 {[%emt 0:05:51]} c6 {[%emt 0:03:00]} 29. b4 {[%emt 0:00:15]} Qd5+ {[%emt 0:03:32]} 30. Kh2 {[%emt 0:00:01]} Kf8 {[%emt 0:00:24]} 31. Rc2 {[%emt 0:00:23]} h6 {[%emt 0:02:11]} 32. Rd2 {[%emt 0:00:32]} Qf5 {[%emt 0:01:19]} 33. Qd4 {[%emt 0:02:20]} e5 {[%emt 0:01:16]} 34. Qc5+ {[%emt 0:01:17]} Kg8 {[%emt 0:00:04]} 35. Re2 {[%emt 0:00:53]} f6 {[%emt 0:00:45]} 36. Rc2 {[%emt 0:04:30]} Rb8 {[%emt 0:02:20]} 37. Qxc6 {[%emt 0:01:03]} Rxb4 {[%emt 0:00:08]} 38. Qc8+ {[%emt 0:00:28]} Qxc8 {[%emt 0:00:04]} 39. Rxc8+ {[%emt 0:00:02]} Kh7 {[%emt 0:00:36]} 40. Rc7 {[%emt 0:00:49]} h5 {[%emt 0:00:10]} 41. Kg2 {[%emt 0:00:02]} Kg6 {[%emt 0:00:13]} 42. Re7 {[%emt 0:00:12]} Ra4 {[%emt 0:00:28]} 43. Rb7 {[%emt 0:00:03]} Ra6 {[%emt 0:00:39]} 44. Re7 {[%emt 0:00:04]} Rc6 {[%emt 0:00:04]} 45. Kf1 {[%emt 0:00:14]} Rc8 {[%emt 0:01:49]} 46. Kg2 {[%emt 0:00:03]} Rg8 {[%emt 0:00:58]} 47. Ra7 {[%emt 0:01:45]} Kf5 {[%emt 0:00:17]} 48. Rb7 {[%emt 0:00:22]} g6 {[%emt 0:00:46]} 49. Rb6 {[%emt 0:00:04]} Re8 {[%emt 0:00:29]} 50. Rb5 {[%emt 0:00:47]} Ke6 {[%emt 0:00:46]} 51. Rb6+ {[%emt 0:00:02]} Kf7 {[%emt 0:00:08]} 52. Kf3 {[%emt 0:00:19]} Re6 {[%emt 0:00:10]} 53. Rb7+ {[%emt 0:00:07]} Re7 {[%emt 0:00:05]} 54. Rb6 {[%emt 0:00:08]} Rd7 {[%emt 0:01:08]} 55. Ra6 {[%emt 0:00:05]} Ke7 {[%emt 0:00:12]} 56. Rb6 {[%emt 0:00:09]} Rd3+ {[%emt 0:00:13]} 57. Ke2 {[%emt 0:00:33]} Rd6 {[%emt 0:00:28]} 58. Rb7+ {[%emt 0:00:07]} Ke6 {[%emt 0:00:08]} 59. Rb5 {[%emt 0:00:31]} Ra6 {[%emt 0:00:26]} 60. Kf3 {[%emt 0:01:18]} Kd6 {[%emt 0:00:16]} 61. Ke2 {[%emt 0:00:35]} Ke6 {[%emt 0:01:02]} 62. Kf3 {[%emt 0:00:09]} Kf5 {[%emt 0:00:05]} 63. Kg2 {[%emt 0:00:13]} Rd6 {[%emt 0:00:50]} 64. Ra5 {[%emt 0:00:01]} Ke6 {[%emt 0:01:11]} 65. Kf3 {[%emt 0:01:10]} f5 {[%emt 0:00:59]} 66. Ke3 {[%emt 0:00:50]} Rb6 {[%emt 0:00:10]} 67. Kf3 {[%emt 0:00:43]} Kf6 {[%emt 0:00:02]} 68. Kg2 {[%emt 0:00:41]} Re6 {[%emt 0:00:09]} 69. Kf3 {[%emt 0:00:10]} Rc6 {[%emt 0:01:51]} 70. Kg2 {[%emt 0:00:24]} Rb6 {[%emt 0:00:11]} 71. Kf3 {[%emt 0:00:02]} Rd6 {[%emt 0:01:03]} 72. Kg2 {[%emt 0:00:20]} Re6 {[%emt 0:00:04]} 73. Kf3 {[%emt 0:00:03]} g5 {[%emt 0:00:39]} 74. hxg5+ {[%emt 0:00:08]} Kxg5 {[%emt 0:00:03]} 75. Ra8 {[%emt 0:00:26]} e4+ {[%emt 0:01:03]} 76. Ke3 {[%emt 0:00:44]} Rd6 {[%emt 0:01:09]} 77. Rg8+ {[%emt 0:00:02]} Rg6 {[%emt 0:00:05]} 78. Rh8 {[%emt 0:00:05]} Kg4 {[%emt 0:00:21]} 79. Rh7 {[%emt 0:00:01]} Rg8 {[%emt 0:00:06]} 80. Rh6 {[%emt 0:00:14]} Rg5 {[%emt 0:00:26]} 81. Rh8 {[%emt 0:00:19]} Rg6 {[%emt 0:00:31]} 82. Rh7 {[%emt 0:00:02]} Rg8 {[%emt 0:00:19]} 83. Rh6 {[%emt 0:00:52]} Rd8 {[%emt 0:01:12]} 84. Rg6+ {[%emt 0:00:06]} Kh3 {[%emt 0:00:03]} 85. Rg5 {[%emt 0:00:17]} Rd3+ {[%emt 0:00:16]} 86. Ke2 {[%emt 0:00:02]} Rf3 {[%emt 0:00:20]} 87. Kf1 {[%emt 0:04:26]} e3 {[%emt 0:00:12]} 88. Rxh5+ {[%emt 0:00:00]} Kg4 {[%emt 0:00:03]} 89. Rh4+ {[%emt 0:00:00]} Kg5 {[%emt 0:00:02]} 90. Rh2 {[%emt 0:00:41]} exf2 {[%emt 0:00:47]} 91. Rxf2 {[%emt 0:04:31]} Kg4 {[%emt 0:00:06]} 92. Kg2 {[%emt 0:00:31]} Rxg3+ {[%emt 0:00:04]} 93. Kh2 {[%emt 0:00:05]} Rh3+ {[%emt 0:01:37]} 94. Kg2 {[%emt 0:00:06]} Ra3 {[%emt 0:00:59]} 95. Rb2 {[%emt 0:00:21]} f4 {[%emt 0:00:19]} 96. Kf2 {[%emt 0:00:30]} Rf3+ {[%emt 0:00:22]} 97. Kg2 {[%emt 0:00:09]} Rg3+ {[%emt 0:00:03]} 98. Kf2 {[%emt 0:00:04]} Rc3 {[%emt 0:01:38]} 99. Ra2 {[%emt 0:00:18]} Rb3 {[%emt 0:00:02]} 100. Rc2 {[%emt 0:00:10]} Rh3 {[%emt 0:00:41]} 101. Rc8 {[%emt 0:02:16]} Rh2+ {[%emt 0:00:14]} 102. Kg1 {[%emt 0:00:22]} Re2 {[%emt 0:00:05]} 103. Rc3 {[%emt 0:00:40]} Re3 {[%emt 0:00:06]} 104. Rc2 {[%emt 0:00:13]} Kf3 {[%emt 0:01:52]} 105. Rf2+ {[%emt 0:00:13]} Kg4 {[%emt 0:00:16]} 106. Ra2 {[%emt 0:00:31]} Rh3 {[%emt 0:01:03]} 107. Ra8 {[%emt 0:01:06]} Kg3 {[%emt 0:00:35]} 108. Rg8+ {[%emt 0:00:15]} Kf3 {[%emt 0:00:05]} 109. Ra8 {[%emt 0:00:02]} Rg3+ {[%emt 0:01:14]} 110. Kf1 {[%emt 0:00:01]} Ke4 {[%emt 0:00:26]} 111. Kf2 {[%emt 0:00:29]} Rf3+ {[%emt 0:00:04]} 112. Ke2 {[%emt 0:00:08]} Re3+ {[%emt 0:00:14]} 113. Kf2 {[%emt 0:00:01]} Rf3+ 1/2-1/2

[Event "Norm Congress-IM 2019"]
[Site "Saint Louis"]
[Date "2019.05.18"]
[Round "4.3"]
[White "Ezra Paul Chambers"]
[Black "Rosen, Eric"]
[Result "0-1"]
[ECO "C77"]
[WhiteElo "2241"]
[BlackElo "2338"]
[Annotator "RC"]
[PlyCount "68"]
[EventDate "2019.05.16"]
[EventType "tourn"]
[EventCountry "USA"]
[SourceTitle "playchess.com"]
[Source "ChessBase"]
[SourceQuality "1"]
[TimeControl "5400+30"]

1. e4 {[%emt 0:00:00]} e5 {[%emt 0:00:00]} 2. Nf3 {[%emt 0:00:00]} Nc6 {[%emt 0:00:00]} 3. Bb5 {[%emt 0:01:31]} a6 {[%emt 0:00:00]} 4. Ba4 {[%emt 0:00:03]} Nf6 {[%emt 0:00:00]} 5. d3 {[%emt 0:00:51]} b5 {[%emt 0:03:23]} 6. Bb3 {[%emt 0:00:05]} Bc5 {[%emt 0:01:12]} 7. Nc3 {[%emt 0:00:32]} h6 {[%emt 0:02:32]} 8. Nd5 {[%emt 0:02:01]} d6 {[%emt 0:02:49]} 9. c3 {[%emt 0:01:41]} Rb8 {[%emt 0:03:48]} 10. O-O {[%emt 0:09:19]} O-O {[%emt 0:02:24]} 11. h3 {[%emt 0:08:22]} Nxd5 {[%emt 0:12:04]} 12. exd5 {[%emt 0:02:27]} Ne7 {[%emt 0:00:06]} 13. d4 {[%emt 0:00:24]} exd4 {[%emt 0:00:20]} 14. Nxd4 {[%emt 0:00:33]} Bb7 {[%emt 0:02:53]} 15. Ne2 {[%emt 0:27:17]} Ng6 {[%emt 0:02:17]} 16. Bc2 {[%emt 0:02:45]} Qh4 {[%emt 0:01:45]} 17. b3 {[%emt 0:10:48]} Rbe8 {[%emt 0:01:52]} 18. Qd3 {[%emt 0:00:17]} Bxd5 {[%emt 0:03:54]} 19. Ng3 {[%emt 0:03:40]} Re5 {[%emt 0:04:13]} 20. a4 {[%emt 0:00:36]} Rfe8 {[%emt 0:01:24]} 21. axb5 {[%emt 0:00:36]} axb5 {[%emt 0:00:10]} 22. Bd2 {[%emt 0:02:09]} Bc6 {[%emt 0:02:51]} 23. Kh2 {[%emt 0:00:13]} Rd5 {[%emt 0:04:45]} 24. Qf3 {[%emt 0:00:17]} Ne5 {[%emt 0:01:40]} 25. Qf5 {[%emt 0:01:58]} Ng4+ {[%emt 0:02:00]} 26. Qxg4 {[%emt 0:00:06]} Qxg4 {[%emt 0:00:04]} 27. hxg4 {[%emt 0:00:07]} Rxd2 {[%emt 0:00:03]} 28. Ra2 {[%emt 0:00:28]} Rxf2 {[%emt 0:01:36]} 29. Rxf2 {[%emt 0:00:19]} Bxf2 {[%emt 0:00:02]} 30. Nf5 {[%emt 0:00:25]} g6 {[%emt 0:02:18]} 31. Nxh6+ {[%emt 0:00:19]} Kg7 {[%emt 0:00:10]} 32. g5 {[%emt 0:00:07]} Be3 {[%emt 0:01:04]} 33. Ng4 {[%emt 0:00:24]} Bf4+ {[%emt 0:00:25]} 34. Kg1 {[%emt 0:00:29]} Bxg5 {[%emt 0:02:42]} 0-1

[Event "Norm Congress-IM 2019"]
[Site "Saint Louis"]
[Date "2019.05.18"]
[Round "4.5"]
[White "Grabinsky, Aaron"]
[Black "Giannatos, Peter"]
[Result "0-1"]
[ECO "D00"]
[WhiteElo "2338"]
[BlackElo "2290"]
[Annotator "ChessBase"]
[PlyCount "76"]
[EventDate "2019.05.16"]
[EventType "tourn"]
[EventCountry "USA"]
[SourceTitle "playchess.com"]
[Source "ChessBase"]
[SourceQuality "1"]
[TimeControl "5400+30"]

1. d4 {[%emt 0:00:00]} d5 {[%emt 0:00:00]} 2. Bf4 {[%emt 0:00:00]} Bf5 {[%emt 0:00:00]} 3. e3 {[%emt 0:00:00]} e6 {[%emt 0:00:00]} 4. Nf3 {[%emt 0:01:07]} Bd6 {[%emt 0:00:44]} 5. Bg3 {[%emt 0:00:15]} Nf6 {[%emt 0:00:44]} 6. c4 {[%emt 0:00:40]} O-O {[%emt 0:01:26]} 7. Nc3 {[%emt 0:00:30]} Bxg3 {[%emt 0:11:13]} 8. hxg3 {[%emt 0:00:06]} c6 {[%emt 0:02:33]} 9. Bd3 {[%emt 0:00:54]} dxc4 {[%emt 0:02:12]} 10. Bxc4 {[%emt 0:00:44]} Nbd7 {[%emt 0:02:53]} 11. Nh4 {[%emt 0:03:12]} Nb6 {[%emt 0:02:36]} 12. Bb3 {[%emt 0:00:29]} a5 {[%emt 0:01:59]} 13. Nxf5 {[%emt 0:01:29]} exf5 {[%emt 0:00:05]} 14. Qf3 {[%emt 0:01:07]} a4 {[%emt 0:05:25]} 15. Bc2 {[%emt 0:00:29]} g6 {[%emt 0:00:23]} 16. O-O-O {[%emt 0:01:34]} a3 {[%emt 0:06:40]} 17. b3 {[%emt 0:03:11]} Nbd5 {[%emt 0:00:06]} 18. Nxd5 {[%emt 0:00:44]} cxd5 {[%emt 0:00:21]} 19. Kb1 {[%emt 0:02:31]} Qa5 {[%emt 0:03:47]} 20. Qe2 {[%emt 0:01:23]} Rac8 {[%emt 0:03:15]} 21. Rc1 {[%emt 0:01:36]} Rc3 {[%emt 0:10:26]} 22. Bd3 {[%emt 0:00:52]} Rfc8 {[%emt 0:01:17]} 23. Rxc3 {[%emt 0:00:54]} Rxc3 {[%emt 0:01:36]} 24. Rd1 {[%emt 0:01:15]} Kg7 {[%emt 0:02:48]} 25. Rd2 {[%emt 0:04:15]} Ne4 {[%emt 0:04:30]} 26. Bxe4 {[%emt 0:00:35]} fxe4 {[%emt 0:00:07]} 27. Qd1 {[%emt 0:02:08]} Rd3 {[%emt 0:06:59]} 28. Rxd3 {[%emt 0:02:15]} exd3 {[%emt 0:00:05]} 29. Qxd3 Qe1+ {[%emt 0:00:15]} 30. Kc2 {[%emt 0:00:17]} Qa1 {[%emt 0:00:43]} 31. Qb5 {[%emt 0:00:30]} Qxa2+ {[%emt 0:00:53]} 32. Kc3 {[%emt 0:00:18]} Qb2+ {[%emt 0:01:44]} 33. Kb4 {[%emt 0:00:08]} a2 {[%emt 0:00:32]} 34. Qxd5 {[%emt 0:00:07]} Qd2+ {[%emt 0:00:39]} 35. Kc4 {[%emt 0:01:15]} Qc2+ {[%emt 0:00:27]} 36. Kb4 {[%emt 0:00:08]} a1=Q {[%emt 0:00:40]} 37. Qe5+ {[%emt 0:00:12]} f6 {[%emt 0:00:44]} 38. Qe7+ {[%emt 0:00:08]} Kh6 {[%emt 0:00:05]} 0-1

[Event "Norm Congress-IM 2019"]
[Site "Saint Louis"]
[Date "2019.05.19"]
[Round "6.3"]
[White "Torres Rosas, Luis Carlos"]
[Black "Jacobson, Aaron"]
[Result "1-0"]
[ECO "E47"]
[WhiteElo "2320"]
[BlackElo "2311"]
[Annotator "RC"]
[PlyCount "67"]
[EventDate "2019.05.16"]
[EventType "tourn"]
[EventCountry "USA"]
[SourceTitle "playchess.com"]
[Source "ChessBase"]
[SourceQuality "1"]
[TimeControl "5400+30"]

1. d4 {[%emt 0:00:30]} Nf6 {[%emt 0:00:00]} 2. c4 {[%emt 0:00:05]} e6 {[%emt 0:00:00]} 3. Nc3 {[%emt 0:00:05]} Bb4 {[%emt 0:00:20]} 4. e3 {[%emt 0:00:34]} O-O {[%emt 0:00:07]} 5. Bd3 {[%emt 0:00:08]} c5 {[%emt 0:00:37]} 6. Nge2 {[%emt 0:00:21]} cxd4 {[%emt 0:00:57]} 7. exd4 {[%emt 0:00:13]} d5 {[%emt 0:00:06]} 8. cxd5 {[%emt 0:01:38]} Nxd5 {[%emt 0:01:06]} 9. O-O {[%emt 0:00:12]} Nc6 {[%emt 0:00:54]} 10. Nxd5 {[%emt 0:03:04]} exd5 {[%emt 0:02:29]} 11. Nf4 {[%emt 0:01:11]} Be7 {[%emt 0:05:12]} 12. Be3 {[%emt 0:05:11]} Bf6 {[%emt 0:03:52]} 13. Nh5 {[%emt 0:04:01]} Re8 {[%emt 0:10:30]} 14. Rc1 {[%emt 0:18:04]} Be6 {[%emt 0:15:43]} 15. Qf3 {[%emt 0:06:54]} Be7 {[%emt 0:19:05]} 16. Nxg7 {[%emt 0:09:14]} Kxg7 {[%emt 0:00:06]} 17. Qh5 {[%emt 0:00:08]} Bf6 {[%emt 0:07:38]} 18. Qh6+ {[%emt 0:12:46]} Kg8 {[%emt 0:00:04]} 19. Bxh7+ {[%emt 0:00:30]} Kh8 {[%emt 0:00:04]} 20. Bf5+ {[%emt 0:00:50]} Kg8 {[%emt 0:00:04]} 21. Qh7+ {[%emt 0:00:24]} Kf8 {[%emt 0:00:04]} 22. Bh6+ {[%emt 0:00:04]} Ke7 {[%emt 0:00:06]} 23. Bxe6 {[%emt 0:00:04]} Kxe6 {[%emt 0:01:23]} 24. Rfe1+ {[%emt 0:02:32]} Kd7 {[%emt 0:00:24]} 25. Qxf7+ {[%emt 0:00:09]} Re7 {[%emt 0:03:42]} 26. Qxd5+ {[%emt 0:00:55]} Ke8 {[%emt 0:00:26]} 27. Qh5+ {[%emt 0:09:41]} Kd7 {[%emt 0:00:08]} 28. Qf5+ {[%emt 0:03:39]} Kc7 {[%emt 0:00:23]} 29. Bf4+ {[%emt 0:01:09]} Kb6 {[%emt 0:00:11]} 30. Qc5+ {[%emt 0:00:19]} Ka6 {[%emt 0:00:05]} 31. Qc4+ {[%emt 0:00:28]} Kb6 {[%emt 0:00:17]} 32. Rxe7 {[%emt 0:04:36]} Qxe7 {[%emt 0:01:45]} 33. d5 {[%emt 0:00:25]} Ne5 {[%emt 0:04:59]} 34. Qb3+ {[%emt 0:01:00]} 1-0